fUST/lending_fUST_20240302
["ID","MTS","AMOUNT","RATE_DAILY","PERIOD"]
[316151084,1709377842622,-1807.31,0.00023999,2]
[316151085,1709377842631,-1807.31,0.00023999,2]
[316151087,1709377842640,-1807.31,0.00023999,2]
[316151089,1709377842649,-1807.31,0.00023999,2]
[316151091,1709377842658,-1807.31,0.00023999,2]
[316151093,1709377842667,-1807.31,0.00023999,2]
[316151094,1709377842676,-1807.31,0.00023999,2]
[316151095,1709377842685,-1807.31,0.00023999,2]
[316151096,1709377842694,-1807.31,0.00023999,2]
[316151097,1709377842703,-1807.31,0.00023999,2]
[316151098,1709377842712,-1807.31,0.00023999,2]
[316151099,1709377842721,-1807.47,0.00023999,2]
[316151100,1709377842731,-500.0,0.00023999,2]
[316151102,1709377842740,-275.00628789,0.00023999,2]
[316151103,1709377842749,-500.0,0.00023999,2]
[316151105,1709377842758,-500.0,0.00023999,2]
[316151107,1709377842767,-500.0,0.00023999,2]
[316151109,1709377842776,-500.0,0.00023999,2]
[316151111,1709377842786,-354.16,0.00023999,2]
[316151112,1709377842795,-500.0,0.00023999,2]
[316151113,1709377842805,-252.97,0.00023999,2]
[316151114,1709377842814,-500.0,0.00023999,2]
[316151115,1709377842823,-500.0,0.00023999,2]
[316151116,1709377842832,-500.0,0.00023999,2]
[316151117,1709377842842,-380.42,0.00023999,2]
[316151118,1709377842851,-541.24,0.00023999,2]
[316151119,1709377842861,-160.36,0.00023999,2]
[316151121,1709377842870,-500.0,0.00023999,2]
[316151131,1709377842958,-500.0,0.00023999,2]
[316151133,1709377842967,-500.0,0.00023999,2]
[316151135,1709377842977,-500.0,0.00023999,2]
[316151137,1709377842987,-500.0,0.00023999,2]
[316151139,1709377842997,-500.0,0.00023999,2]
[316151141,1709377843016,-500.0,0.00023999,2]
[316151143,1709377843026,-500.0,0.00023999,2]
[316151145,1709377843036,-500.0,0.00023999,2]
[316151147,1709377843046,-500.0,0.00023999,2]
[316151148,1709377843055,-500.0,0.00023999,2]
[316151150,1709377843064,-500.0,0.00023999,2]
[316151152,1709377843074,-500.0,0.00023999,2]
[316151154,1709377843083,-546.32,0.00023999,2]
[316151155,1709377843093,-1136220.90781384,0.00024,5]
[316151168,1709377843270,-500.0,0.00020547,2]
[316151170,1709377843280,-500.0,0.00021085,2]
[316151171,1709377843289,-500.0,0.00022241,2]
[316151172,1709377843298,-500.0,0.00022346,2]
[316151173,1709377843308,-500.0,0.00023015,2]
[316151174,1709377843317,-500.0,0.00023785,2]
[316151175,1709377843327,-471.11701926,0.00023899,2]
[316151176,1709377843338,-28.88298074,0.00023899,2]
[316151177,1709377843347,-500.0,0.00023999,2]
[316151178,1709377843356,-500.0,0.00023999,2]
[316151179,1709377843366,-18792.66484948,0.00024,5]
[316151180,1709377843377,-518.61,0.00024,5]
[316151181,1709377843388,-6684.75592298,0.00024,5]
[316151201,1709377848210,-500.0,0.00020547,2]
[316151202,1709377848220,-645.41847364,0.00020547,2]
[316151203,1709377848230,-500.0,0.00020547,2]
[316151204,1709377848239,-500.0,0.00021085,2]
[316151205,1709377848249,-500.0,0.00022241,2]
[316151206,1709377848258,-26759.33943888,0.00024,5]
[316151221,1709378924529,1000.0,0.0003,120]
[316151261,1709379032450,-623.51457939,0.00018986,2]
[316151263,1709379032461,-157.684354,0.00018987,2]
[316151265,1709379032470,-15929.12357906,0.00019343,2]
[316151266,1709379032480,-4068.5017816,0.00019344,2]
[316151267,1709379032489,-265.83405327,0.00020447,2]
[316151268,1709379032499,-500.0,0.00020546,2]
[316151269,1709379032508,-500.0,0.00020547,2]
[316151270,1709379032518,-501.20916685,0.00020547,2]
[316151271,1709379032529,-500.0,0.00020547,2]
[316151272,1709379032539,-500.0,0.00020547,2]
[316151273,1709379032548,-500.0,0.00020547,2]
[316151274,1709379032558,-500.0,0.00020547,2]
[316151275,1709379032568,-500.0,0.00020547,2]
[316151276,1709379032577,-500.0,0.00020547,2]
[316151277,1709379032586,-500.0,0.00020547,2]
[316151278,1709379032595,-500.0,0.00020547,2]
[316151279,1709379032604,-500.0,0.00020547,2]
[316151280,1709379032614,-500.0,0.00020547,2]
[316151281,1709379032624,-500.0,0.00020547,2]
[316151282,1709379032633,-500.0,0.00020547,2]
[316151283,1709379032643,-500.0,0.00020547,2]
[316151284,1709379032652,-500.0,0.00020547,2]
[316151285,1709379032661,-500.0,0.00020547,2]
[316151286,1709379032670,-500.0,0.00020547,2]
[316151287,1709379032679,-501.01552369,0.00020547,2]
[316151288,1709379032689,-502.2620385,0.00020547,2]
[316151289,1709379032698,-500.0,0.00020547,2]
[316151290,1709379032707,-153.19976772,0.00020547,2]
[316151291,1709379032716,-500.0,0.00020547,2]
[316151292,1709379032725,-500.0,0.00020547,2]
[316151293,1709379032735,-500.0,0.00020547,2]
[316151294,1709379032744,-500.97185302,0.00020547,2]
[316151295,1709379032753,-355.60851445,0.00020547,2]
[316151296,1709379032762,-502.09505148,0.00020547,2]
[316151297,1709379032771,-500.0,0.00020547,2]
[316151298,1709379032780,-500.0,0.00020547,2]
[316151299,1709379032789,-500.0,0.00020547,2]
[316151300,1709379032798,-239.22414586,0.00020547,2]
[316151301,1709379032807,-500.0,0.00020547,2]
[316151302,1709379032825,-500.0,0.00020547,2]
[316151303,1709379032852,-500.0,0.00020547,2]
[316151304,1709379032862,-500.0,0.00020547,2]
[316151305,1709379032871,-500.0,0.00020547,2]
[316151306,1709379032880,-500.0,0.00020547,2]
[316151307,1709379032890,-500.0,0.00020547,2]
[316151308,1709379032899,-563.72741272,0.00020547,2]
[316151309,1709379032908,-500.0,0.00020547,2]
[316151310,1709379032917,-500.0,0.00020547,2]
[316151311,1709379032926,-500.0,0.00020547,2]
[316151312,1709379032935,-500.0,0.00020547,2]
[316151313,1709379032944,-502.04372726,0.00020547,2]
[316151314,1709379032952,-500.0,0.00020547,2]
[316151315,1709379032961,-500.0,0.00020547,2]
[316151316,1709379032970,-500.0,0.00020547,2]
[316151317,1709379032979,-500.0,0.00020547,2]
[316151318,1709379032988,-500.0,0.00020547,2]
[316151319,1709379032997,-500.0,0.00020547,2]
[316151320,1709379033006,-500.0,0.00020547,2]
[316151321,1709379033015,-517.73956547,0.00020547,2]
[316151322,1709379033024,-500.0,0.00020547,2]
[316151323,1709379033033,-500.0,0.00020547,2]
[316151324,1709379033042,-500.0,0.00020547,2]
[316151325,1709379033051,-500.0,0.00021083,2]
[316151326,1709379033060,-452.56698785,0.00021083,2]
[316151327,1709379033069,-500.0,0.00021083,2]
[316151328,1709379033078,-292.79050958,0.00021083,2]
[316151329,1709379033087,-500.0,0.00021083,2]
[316151330,1709379033096,-500.0,0.00021083,2]
[316151331,1709379033105,-500.0,0.00021083,2]
[316151332,1709379033114,-396.85365674,0.00021083,2]
[316151333,1709379033125,-357.86717984,0.00021085,2]
[316151334,1709379033133,-500.0,0.00021917,2]
[316151335,1709379033142,-500.0,0.00021917,2]
[316151336,1709379033153,-500.0,0.00021917,2]
[316151337,1709379033162,-500.0,0.00021917,2]
[316151338,1709379033171,-500.0,0.00021917,2]
[316151339,1709379033180,-500.0,0.00021917,2]
[316151340,1709379033189,-500.0,0.00021917,2]
[316151341,1709379033198,-466.95,0.00021917,2]
[316151342,1709379033207,-471.49856942,0.00021917,2]
[316151343,1709379033216,-500.0,0.00021917,2]
[316151344,1709379033225,-500.0,0.00021917,2]
[316151345,1709379033234,-10000.0,0.00021918,2]
[316151346,1709379033243,-500.0,0.00021999,2]
[316151347,1709379033252,-500.0,0.00021999,2]
[316151348,1709379033261,-208.71529326,0.00022,2]
[316151349,1709379033270,-327.2251864,0.00022002,2]
[316151350,1709379033279,-157.1486779,0.00022003,2]
[316151351,1709379033287,-500.0,0.00022005,2]
[316151352,1709379033296,-500.0,0.0002224,2]
[316151353,1709379033306,-500.0,0.0002224,2]
[316151354,1709379033315,-500.0,0.0002224,2]
[316151355,1709379033324,-500.0,0.0002224,2]
[316151356,1709379033334,-500.0,0.0002224,2]
[316151357,1709379033346,-500.0,0.0002224,2]
[316151358,1709379033452,-500.0,0.0002224,2]
[316151359,1709379033462,-251.73175952,0.00022242,2]
[316151360,1709379033472,-170.88078617,0.00022245,2]
[316151361,1709379033481,-190.97760339,0.00022248,2]
[316151362,1709379033491,-435.12527302,0.00022256,2]
[316151363,1709379033500,-924.91290154,0.00022256,2]
[316151364,1709379033509,-154.67956714,0.00022256,2]
[316151365,1709379033518,-168.927298,0.00022256,2]
[316151366,1709379033528,-500.0,0.00022298,2]
[316151367,1709379033537,-727.87,0.00022323,3]
[316151368,1709379033547,-232.42,0.00022332,2]
[316151369,1709379033556,-232.42,0.00022332,2]
[316151370,1709379033567,-232.42,0.00022332,2]
[316151371,1709379033576,-232.42,0.00022332,2]
[316151372,1709379033585,-232.42,0.00022332,2]
[316151373,1709379033594,-232.42,0.00022332,2]
[316151374,1709379033604,-232.42,0.00022332,2]
[316151375,1709379033614,-500.0,0.00022332,2]
[316151376,1709379033624,-500.0,0.00022332,2]
[316151377,1709379033634,-500.0,0.00022332,2]
[316151378,1709379033643,-500.0,0.00022332,2]
[316151379,1709379033654,-500.0,0.00022332,2]
[316151380,1709379033664,-248.35557997,0.00022332,2]
[316151390,1709379038340,-251.64442003,0.00022332,2]
[316151391,1709379038349,-500.0,0.00022332,2]
[316151392,1709379038360,-500.0,0.00022332,2]
[316151393,1709379038369,-500.0,0.00022332,2]
[316151394,1709379038380,-500.0,0.00022332,2]
[316151395,1709379038389,-500.0,0.00022332,2]
[316151396,1709379038398,-500.0,0.00022332,2]
[316151397,1709379038407,-500.0,0.00022332,2]
[316151398,1709379038417,-500.0,0.00022332,2]
[316151399,1709379038426,-500.0,0.00022332,2]
[316151400,1709379038436,-500.0,0.00022332,2]
[316151401,1709379038446,-500.0,0.00022332,2]
[316151402,1709379038455,-500.0,0.00022332,2]
[316151403,1709379038464,-500.0,0.00022332,2]
[316151404,1709379038474,-500.0,0.00022332,2]
[316151405,1709379038483,-168.74,0.00022332,2]
[316151406,1709379038493,-35847.00135143,0.00022333,5]
[316151407,1709379038502,-46344.95826849,0.00022333,4]
[316151408,1709379038511,-22009.7667876,0.00022333,4]
[316151409,1709379038521,-2134.05320282,0.00022333,4]
[316151410,1709379038530,-500.91745641,0.00022345,2]
[316151411,1709379038539,-500.0,0.00022345,2]
[316151412,1709379038548,-431.86055815,0.00022345,2]
[316151413,1709379038558,-643.1,0.00022345,2]
[316151414,1709379038567,-500.0,0.00022345,2]
[316151415,1709379038576,-500.0,0.00022345,2]
[316151416,1709379038585,-500.0,0.00022345,2]
[316151417,1709379038594,-500.0,0.00022345,2]
[316151418,1709379038603,-502.49135031,0.00022345,2]
[316151419,1709379038612,-643.23193934,0.00022345,2]
[316151420,1709379038621,-500.0,0.00022345,2]
[316151421,1709379038632,-326.80849412,0.00022345,2]
[316151422,1709379038640,-500.0,0.00022345,2]
[316151423,1709379038649,-500.0,0.00022345,2]
[316151424,1709379038658,-500.0,0.00022345,2]
[316151425,1709379038667,-500.0,0.00022345,2]
[316151426,1709379038676,-500.0,0.00022345,2]
[316151427,1709379038685,-500.0,0.00022345,2]
[316151428,1709379038693,-500.0,0.00022345,2]
[316151429,1709379038703,-500.0,0.00022345,2]
[316151430,1709379038712,-500.0,0.00022345,2]
[316151431,1709379038721,-500.0,0.00022345,2]
[316151432,1709379038730,-503.25719014,0.00022345,2]
[316151433,1709379038739,-166.56,0.00022345,2]
[316151434,1709379038748,-500.0,0.00022345,2]
[316151435,1709379038757,-500.0,0.00022345,2]
[316151436,1709379038766,-182.70269189,0.00022345,2]
[316151437,1709379038776,-500.0,0.00022345,2]
[316151438,1709379038784,-500.94288536,0.00022345,2]
[316151439,1709379038794,-500.0,0.00022345,2]
[316151440,1709379038803,-500.0,0.00022345,2]
[316151441,1709379038813,-500.0,0.00022345,2]
[316151442,1709379038822,-500.0,0.00022345,2]
[316151443,1709379038831,-500.0,0.00022345,2]
[316151444,1709379038841,-500.0,0.00022345,2]
[316151445,1709379038850,-502.12525697,0.00022345,2]
[316151446,1709379038859,-500.0,0.00022345,2]
[316151447,1709379038867,-500.0,0.00022345,2]
[316151448,1709379038878,-500.0,0.00022345,2]
[316151449,1709379038887,-500.85410748,0.00022345,2]
[316151450,1709379038896,-500.0,0.00022345,2]
[316151451,1709379038906,-502.2814985,0.00022345,2]
[316151452,1709379038916,-271.72730083,0.00022345,2]
[316151453,1709379038925,-500.0,0.00022345,2]
[316151454,1709379038934,-500.0,0.00022345,2]
[316151455,1709379038944,-501.48133259,0.00022345,2]
[316151456,1709379038953,-500.0,0.00022345,2]
[316151457,1709379038962,-500.94395005,0.00022345,2]
[316151458,1709379038971,-154.45640232,0.00022345,2]
[316151459,1709379038980,-500.0,0.00022345,2]
[316151460,1709379038989,-500.0,0.00022345,2]
[316151461,1709379038998,-271.2710642,0.00022345,2]
[316151462,1709379039007,-500.0,0.00022345,2]
[316151463,1709379039016,-500.11847754,0.00022345,2]
[316151464,1709379039025,-500.0,0.00022345,2]
[316151465,1709379039033,-1916.18,0.00022345,2]
[316151466,1709379039042,-500.0,0.00022346,2]
[316151467,1709379039052,-153.0,0.00022438,2]
[316151468,1709379039061,-153.0,0.00022438,2]
[316151469,1709379039070,-5000.0,0.00023797,5]
[316151470,1709379039079,-50000.0,0.00023815,5]
[316151471,1709379039088,-500.0,0.00023898,2]
[316151472,1709379039096,-500.0,0.00023898,2]
[316151473,1709379039105,-500.0,0.00023898,2]
[316151474,1709379039114,-500.0,0.00023899,2]
[316151475,1709379039123,-500.0,0.00023899,2]
[316151476,1709379039133,-500.0,0.00023899,2]
[316151477,1709379039142,-500.0,0.00023899,2]
[316151478,1709379039151,-16499.2734939,0.000239,2]
[316151479,1709379039160,-543.87,0.00023997,2]
[316151480,1709379039169,-277.96,0.00023997,2]
[316151481,1709379039178,-598.69,0.00023997,2]
[316151482,1709379039188,-500.0,0.00023997,2]
[316151483,1709379039197,-155.01085076,0.00023998,2]
[316151484,1709379039206,-500.0,0.00023998,2]
[316151485,1709379039215,-275.00628789,0.00023998,2]
[316151486,1709379039224,-516.12738441,0.00023998,2]
[316151487,1709379039233,-500.0,0.00023998,2]
[316151488,1709379039242,-500.0,0.00023998,2]
[316151489,1709379039251,-423.53,0.00023998,2]
[316151490,1709379039260,-464.58599555,0.00023998,2]
[316151491,1709379039270,-500.0,0.00023998,2]
[316151492,1709379039278,-500.0,0.00023998,2]
[316151493,1709379039287,-926.88076634,0.00023999,2]
[316151494,1709379039296,-1632.97219888,0.00023999,2]
[316151495,1709379039305,-500.0,0.00023999,2]
[316151496,1709379039314,-500.0,0.00023999,2]
[316151497,1709379039324,-500.0,0.00023999,2]
[316151498,1709379039333,-500.0,0.00023999,2]
[316151499,1709379039343,-500.0,0.00023999,2]
[316151500,1709379039352,-500.0,0.00023999,2]
[316151501,1709379039365,-500.0,0.00023999,2]
[316151502,1709379039375,-500.0,0.00023999,2]
[316151503,1709379039391,-500.0,0.00023999,2]
[316151504,1709379039402,-500.0,0.00023999,2]
[316151505,1709379039413,-500.0,0.00023999,2]
[316151506,1709379039423,-500.0,0.00023999,2]
[316151507,1709379039433,-500.0,0.00023999,2]
[316151508,1709379039442,-500.0,0.00023999,2]
[316151509,1709379039454,-500.0,0.00023999,2]
[316151510,1709379039463,-373.30125821,0.00023999,2]
[316151511,1709379039472,-501.72271749,0.00023999,2]
[316151512,1709379039481,-500.0,0.00023999,2]
[316151513,1709379039490,-505.12355103,0.00023999,2]
[316151514,1709379039499,-500.0,0.00023999,2]
[316151515,1709379039509,-500.0,0.00023999,2]
[316151516,1709379039518,-500.0,0.00023999,2]
[316151517,1709379039527,-500.0,0.00023999,2]
[316151518,1709379039536,-500.0,0.00023999,2]
[316151519,1709379039544,-500.0,0.00023999,2]
[316151520,1709379039553,-500.0,0.00023999,2]
[316151521,1709379039562,-500.0,0.00023999,2]
[316151522,1709379039572,-500.0,0.00023999,2]
[316151523,1709379039581,-354.16,0.00023999,2]
[316151524,1709379039590,-500.0,0.00023999,2]
[316151525,1709379039599,-500.0,0.00023999,2]
[316151526,1709379039609,-500.0,0.00023999,2]
[316151527,1709379039618,-500.0,0.00023999,2]
[316151528,1709379039628,-500.0,0.00023999,2]
[316151529,1709379039637,-500.0,0.00023999,2]
[316151530,1709379039646,-488.88,0.00023999,2]
[316151531,1709379039655,-500.0,0.00023999,2]
[316151532,1709379039664,-500.0,0.00023999,2]
[316151533,1709379039673,-541.24,0.00023999,2]
[316151534,1709379039682,-500.0,0.00023999,2]
[316151535,1709379039691,-500.0,0.00023999,2]
[316151536,1709379039700,-500.0,0.00023999,2]
[316151537,1709379039710,-174.49,0.00023999,2]
[316151538,1709379039720,-500.0,0.00023999,2]
[316151539,1709379039729,-500.0,0.00023999,2]
[316151540,1709379039738,-500.0,0.00023999,2]
[316151541,1709379039747,-500.0,0.00023999,2]
[316151542,1709379039756,-500.0,0.00023999,2]
[316151543,1709379039765,-500.0,0.00023999,2]
[316151544,1709379039775,-220.62,0.00023999,2]
[316151545,1709379039784,-501.59162361,0.00023999,2]
[316151546,1709379039794,-500.0,0.00023999,2]
[316151547,1709379039803,-500.0,0.00023999,2]
[316151548,1709379039813,-500.0,0.00023999,2]
[316151549,1709379039822,-500.0,0.00023999,2]
[316151550,1709379039831,-500.0,0.00023999,2]
[316151551,1709379039840,-500.0,0.00023999,2]
[316151552,1709379039849,-500.0,0.00023999,2]
[316151553,1709379039858,-500.0,0.00023999,2]
[316151554,1709379039867,-500.0,0.00023999,2]
[316151555,1709379039876,-500.0,0.00023999,2]
[316151556,1709379039887,-500.0,0.00023999,2]
[316151557,1709379039896,-500.0,0.00023999,2]
[316151558,1709379039905,-500.0,0.00023999,2]
[316151559,1709379039914,-500.0,0.00023999,2]
[316151560,1709379039923,-500.0,0.00023999,2]
[316151561,1709379039933,-500.0,0.00023999,2]
[316151562,1709379039942,-500.0,0.00023999,2]
[316151563,1709379039951,-500.0,0.00023999,2]
[316151564,1709379039961,-390.08,0.00023999,2]
[316151565,1709379039970,-500.0,0.00023999,2]
[316151566,1709379039979,-500.0,0.00023999,2]
[316151567,1709379039988,-564.10725101,0.00023999,2]
[316151568,1709379039997,-1916.18,0.00023999,2]
[316151569,1709379040007,-1916.18,0.00023999,2]
[316151570,1709379040016,-1916.18,0.00023999,2]
[316151571,1709379040025,-1916.18,0.00023999,2]
[316151572,1709379040034,-1916.18,0.00023999,2]
[316151573,1709379040043,-1916.18,0.00023999,2]
[316151574,1709379040052,-1916.18,0.00023999,2]
[316151575,1709379040062,-1916.18,0.00023999,2]
[316151576,1709379040071,-1916.18,0.00023999,2]
[316151577,1709379040081,-1916.18,0.00023999,2]
[316151578,1709379040176,-1916.18,0.00023999,2]
[316151579,1709379040185,-1191040.25124602,0.00024,5]
[316151580,1709379040201,-2120.88608694,0.00024,5]
[316151581,1709379040213,-10000.0,0.00024,5]
[316151582,1709379040224,-4249.38420413,0.00024,5]
[316151658,1709379043338,-543.41483003,0.00023999,2]
[316151659,1709379043350,-1023.0,0.00023999,2]
[316151660,1709379043361,-349.76516997,0.00023999,2]
[316151661,1709379043371,-954.9866515,0.00023999,2]
[316151719,1709379182726,1213.01884507,0.0003,120]
[316151720,1709379353741,-900000.0,0.00024096,60]
[316151721,1709379358138,-900000.0,0.00024096,60]
[316151722,1709379361952,-158.97,0.00027651,35]
[316151723,1709379361978,-150.5,0.00027661,35]
[316151724,1709379362003,-173.282452,0.00027671,35]
[316151725,1709379362027,-173.282452,0.00027671,52]
[316151726,1709379362051,-173.282452,0.00027671,69]
[316151727,1709379362076,-173.282452,0.00027671,86]
[316151728,1709379362100,-173.282452,0.00027671,103]
[316151729,1709379362124,-173.282452,0.00027671,119]
[316151730,1709379362157,-630.24301667,0.000299,90]
[316151731,1709379362181,-404.018,0.000299,60]
[316151732,1709379362215,-11948.38941797,0.000329,120]
[316151733,1709379362239,-332479.36883508,0.00033698,120]
[316151734,1709379362266,-252.6599679,0.00034,120]
[316151735,1709379362293,-2416.21745957,0.00034689,120]
[316151736,1709379362318,-150.9425528,0.00034898,120]
[316151737,1709379362347,-200.0,0.00035,120]
[316151738,1709379373946,-900000.0,0.00024096,60]
[316151759,1709380220774,208.71529326,0.00025,120]
[316151792,1709380238552,-744.79129449,0.00018762,2]
[316151793,1709380238561,-927.10128616,0.00018762,2]
[316151794,1709380238570,-15929.12357906,0.00018762,2]
[316151795,1709380238579,-210.989413,0.00018765,2]
[316151797,1709380238588,-20510.552956,0.00019031,2]
[316151799,1709380238598,-184.657561,0.00019178,2]
[316151801,1709380238607,-169.668718,0.00019279,2]
[316151803,1709380238616,-652.42,0.00020537,3]
[316151806,1709380238625,-200.0,0.00020546,12]
[316151808,1709380238634,-500.0,0.00020546,2]
[316151810,1709380238643,-623.78140873,0.00020547,2]
[316151812,1709380238651,-585.03189378,0.00020547,2]
[316151814,1709380238662,-501.56110135,0.00020547,2]
[316151816,1709380238672,-500.0,0.00020547,2]
[316151817,1709380238691,-500.0,0.00020547,2]
[316151818,1709380238702,-500.0,0.00020547,2]
[316151819,1709380238717,-500.0,0.00020547,2]
[316151820,1709380238726,-500.0,0.00020547,2]
[316151821,1709380238736,-500.0,0.00020547,2]
[316151822,1709380238746,-500.0,0.00020547,2]
[316151823,1709380238755,-500.0,0.00020547,2]
[316151824,1709380238765,-500.0,0.00020547,2]
[316151825,1709380238774,-500.0,0.00020547,2]
[316151826,1709380238784,-500.0,0.00020547,2]
[316151827,1709380238793,-503.25719014,0.00020547,2]
[316151828,1709380238803,-500.0,0.00020547,2]
[316151829,1709380238814,-520.4149339,0.00020547,2]
[316151830,1709380238823,-500.0,0.00020547,2]
[316151831,1709380238832,-501.21354687,0.00020547,2]
[316151832,1709380238842,-161.05007326,0.00020547,2]
[316151833,1709380238851,-500.0,0.00020547,2]
[316151834,1709380238860,-500.0,0.00020547,2]
[316151836,1709380238870,-501.05791227,0.00020547,2]
[316151837,1709380238879,-500.0,0.00020547,2]
[316151839,1709380238888,-500.0,0.00020547,2]
[316151841,1709380238898,-500.0,0.00020547,2]
[316151843,1709380238910,-615.32275333,0.00020547,2]
[316151845,1709380238919,-503.43352678,0.00020547,2]
[316151847,1709380238929,-500.0,0.00020547,2]
[316151849,1709380238939,-501.13043784,0.00020547,2]
[316151851,1709380238948,-500.0,0.00020547,2]
[316151853,1709380238957,-500.0,0.00020547,2]
[316151855,1709380238967,-500.0,0.00020547,2]
[316151857,1709380238977,-365.13336314,0.00020547,2]
[316151859,1709380238987,-502.34758977,0.00020547,2]
[316151861,1709380238996,-500.0,0.00020547,2]
[316151863,1709380239006,-502.06681973,0.00020547,2]
[316151865,1709380239015,-500.0,0.00020547,2]
[316151867,1709380239024,-500.0,0.00020547,2]
[316151869,1709380239033,-500.0,0.00020547,2]
[316151871,1709380239043,-502.80783652,0.00020547,2]
[316151873,1709380239052,-500.0,0.00020547,2]
[316151874,1709380239061,-500.0,0.00020547,2]
[316151875,1709380239070,-501.65812507,0.00020547,2]
[316151876,1709380239079,-500.0,0.00020547,2]
[316151877,1709380239090,-502.2675815,0.00020547,2]
[316151878,1709380239099,-627.70059011,0.00020547,2]
[316151879,1709380239108,-502.12525697,0.00020547,2]
[316151880,1709380239118,-500.5170936,0.00020547,2]
[316151881,1709380239127,-500.0,0.00020547,2]
[316151882,1709380239137,-501.28108862,0.00020547,2]
[316151883,1709380239146,-571.96434554,0.00020547,2]
[316151884,1709380239155,-500.0,0.00020547,2]
[316151885,1709380239164,-501.14268804,0.00020547,2]
[316151886,1709380239174,-501.50962306,0.00020547,2]
[316151887,1709380239184,-614.34189258,0.00020547,2]
[316151888,1709380239194,-504.03311446,0.00020547,2]
[316151889,1709380239203,-500.0,0.00020547,2]
[316151890,1709380239213,-500.0,0.00020547,2]
[316151891,1709380239222,-500.0,0.00020547,2]
[316151892,1709380239231,-500.0,0.00020547,2]
[316151893,1709380239240,-502.2814985,0.00020547,2]
[316151894,1709380239249,-500.0,0.00020547,2]
[316151895,1709380239259,-271.72730083,0.00020547,2]
[316151896,1709380239268,-500.0,0.00020547,2]
[316151897,1709380239277,-500.0,0.00020547,2]
[316151898,1709380239285,-500.0,0.00020547,2]
[316151899,1709380239294,-500.0,0.00020547,2]
[316151900,1709380239304,-500.0,0.00020547,2]
[316151901,1709380239313,-501.73342296,0.00020547,2]
[316151902,1709380239322,-500.85410748,0.00020547,2]
[316151903,1709380239332,-501.48133259,0.00020547,2]
[316151904,1709380239341,-500.0,0.00020547,2]
[316151905,1709380239350,-500.0,0.00020547,2]
[316151906,1709380239358,-500.94395005,0.00020547,2]
[316151907,1709380239367,-500.0,0.00020547,2]
[316151908,1709380239377,-634.11959593,0.00020547,2]
[316151909,1709380239386,-500.0,0.00020547,2]
[316151910,1709380239395,-500.0,0.00020547,2]
[316151911,1709380239405,-501.5207383,0.00020547,2]
[316151912,1709380239414,-500.0,0.00020547,2]
[316151913,1709380239423,-406.18048367,0.00020547,2]
[316151914,1709380239432,-199.1282811,0.00020547,2]
[316151915,1709380239441,-500.0,0.00020547,2]
[316151916,1709380239450,-500.0,0.00020547,2]
[316151917,1709380239459,-500.0,0.00020547,2]
[316151918,1709380239468,-501.60986542,0.00020547,2]
[316151919,1709380239478,-271.2710642,0.00020547,2]
[316151920,1709380239486,-501.04707359,0.00020547,2]
[316151921,1709380239496,-500.0,0.00020547,2]
[316151922,1709380239505,-501.22259027,0.00020547,2]
[316151923,1709380239514,-553.35442012,0.00020547,2]